[Event "Early-Titled-Tuesday-Blitz-August-29-2023"]
[Site "Chess.com"]
[Date "2023.08.29"]
[Round "9"]
[White "mapleaff"]
[Black "Maus7"]
[Result "1-0"]
[WhiteElo "2322"]
[BlackElo "2485"]
[TimeControl "180+1"]
[EndTime "9:44:10 PDT"]
[Termination "mapleaff won on time"]

1. d4 {[%clk 0:02:59.1]} 1... Nf6 {[%clk 0:02:59.8]} 2. Bf4 {[%clk 0:02:58.5]}
2... d5 {[%clk 0:02:59.9]} 3. Nf3 {[%clk 0:02:57.3]} 3... e6 {[%clk 0:03:00.8]}
4. e3 {[%clk 0:02:54.8]} 4... Bd6 {[%clk 0:03:01.7]} 5. Ne5 {[%clk 0:02:48.5]}
5... O-O {[%clk 0:03:01.3]} 6. Nd2 {[%clk 0:02:42]} 6... c5 {[%clk 0:02:57.7]}
7. c3 {[%clk 0:02:41.2]} 7... c4 {[%clk 0:02:54.9]} 8. g4 {[%clk 0:02:30.5]}
8... Qc7 {[%clk 0:02:32.8]} 9. g5 {[%clk 0:02:20.1]} 9... Nfd7 {[%clk
0:02:31.9]} 10. Ndf3 {[%clk 0:02:13.1]} 10... Nxe5 {[%clk 0:02:06.4]} 11. Bxe5
{[%clk 0:02:04]} 11... Nc6 {[%clk 0:01:56.3]} 12. Bxd6 {[%clk 0:02:01.2]} 12...
Qxd6 {[%clk 0:01:57.2]} 13. Rg1 {[%clk 0:01:38.8]} 13... b5 {[%clk 0:01:56.1]}
14. h4 {[%clk 0:01:29.4]} 14... b4 {[%clk 0:01:52.4]} 15. h5 {[%clk 0:01:20.7]}
15... bxc3 {[%clk 0:01:45]} 16. bxc3 {[%clk 0:01:21.6]} 16... e5 {[%clk
0:01:45.5]} 17. Nxe5 {[%clk 0:01:15.6]} 17... Nxe5 {[%clk 0:01:46.4]} 18. dxe5
{[%clk 0:01:16.5]} 18... Qxe5 {[%clk 0:01:47.3]} 19. Qd4 {[%clk 0:01:13.9]}
19... Qxd4 {[%clk 0:01:41.2]} 20. exd4 {[%clk 0:01:12.7]} 20... Rb8 {[%clk
0:01:26.7]} 21. h6 {[%clk 0:00:45.6]} 21... Bf5 {[%clk 0:01:16.3]} 22. Ke2
{[%clk 0:00:26.7]} 22... Rb2+ {[%clk 0:01:08]} 23. Kf3 {[%clk 0:00:25.9]} 23...
Be4+ {[%clk 0:00:53]} 24. Kf4 {[%clk 0:00:25.5]} 24... Rxf2+ {[%clk 0:00:51.6]}
25. Ke5 {[%clk 0:00:25]} 25... Rd8 {[%clk 0:00:35.7]} 26. Bh3 {[%clk 0:00:18.8]}
26... g6 {[%clk 0:00:17.4]} 27. Rgf1 {[%clk 0:00:12.6]} 27... Re8+ {[%clk
0:00:17.6]} 28. Kd6 {[%clk 0:00:12.2]} 28... Rh2 {[%clk 0:00:18.5]} 29. Bd7
{[%clk 0:00:11.6]} 29... Rd8 {[%clk 0:00:14.7]} 30. Ke7 {[%clk 0:00:11.6]} 30...
Rf8 {[%clk 0:00:12.3]} 31. Be6 {[%clk 0:00:08.1]} 31... Bf5 {[%clk 0:00:03.2]}
32. Bxf5 {[%clk 0:00:08.5]} 32... gxf5 {[%clk 0:00:03.4]} 33. Rxf5 {[%clk
0:00:09.4]} 33... Re2+ {[%clk 0:00:03.2]} 34. Re5 {[%clk 0:00:05.6]} 34... Rxe5+
{[%clk 0:00:02.3]} 35. dxe5 {[%clk 0:00:06.5]} 35... Rb8 {[%clk 0:00:01.6]} 36.
Rd1 {[%clk 0:00:04.8]} 36... Rb5 {[%clk 0:00:01.6]} 37. Kf6 {[%clk 0:00:04.4]}
37... Rb6+ {[%clk 0:00:01.6]} 38. Kf5 {[%clk 0:00:04.4]} 38... Rb5 {[%clk
0:00:02]} 39. Kf6 {[%clk 0:00:03.5]} 39... Rb6+ {[%clk 0:00:01.7]} 40. Kf5
{[%clk 0:00:03.5]} 40... Rb5 {[%clk 0:00:02.2]} 41. e6 {[%clk 0:00:03.5]} 41...
fxe6+ {[%clk 0:00:02.2]} 42. Kxe6 {[%clk 0:00:04.4]} 42... d4 {[%clk 0:00:02.6]}
43. Rxd4 {[%clk 0:00:02.5]} 43... Rb6+ {[%clk 0:00:02.9]} 44. Kf5 {[%clk
0:00:02.6]} 44... Rb5+ {[%clk 0:00:03.1]} 45. Kf4 {[%clk 0:00:03.1]} 45... Ra5
{[%clk 0:00:02.6]} 46. Rxc4 {[%clk 0:00:03.6]} 46... Rxa2 {[%clk 0:00:02.7]} 47.
Rc8+ {[%clk 0:00:04.2]} 47... Kf7 {[%clk 0:00:02.4]} 48. Rh8 {[%clk 0:00:04.8]}
48... Ra4+ {[%clk 0:00:01.4]} 49. Kf3 {[%clk 0:00:03.8]} 49... Ra5 {[%clk
0:00:01.8]} 50. Rxh7+ {[%clk 0:00:03.6]} 50... Kg6 {[%clk 0:00:01.6]} 51. Rg7+
{[%clk 0:00:04.5]} 51... Kf5 {[%clk 0:00:01.4]} 52. h7 {[%clk 0:00:04.8]} 52...
Ra3 {[%clk 0:00:01.5]} 53. h8=Q {[%clk 0:00:04.6]} 53... Rxc3+ {[%clk
0:00:02.4]} 54. Ke2 {[%clk 0:00:05.1]} 54... Rc2+ {[%clk 0:00:02.8]} 55. Kd3
{[%clk 0:00:05.7]} 55... Rc6 {[%clk 0:00:02.1]} 56. Rf7+ {[%clk 0:00:05.8]}
56... Kg4 {[%clk 0:00:01.6]} 57. Qd4+ {[%clk 0:00:05.5]} 1-0

[Event "Early-Titled-Tuesday-Blitz-August-29-2023"]
[Site "Chess.com"]
[Date "2023.08.29"]
[Round "9"]
[White "Agibileg"]
[Black "VerdeNotte"]
[Result "1-0"]
[WhiteElo "2635"]
[BlackElo "2878"]
[TimeControl "180+1"]
[EndTime "9:44:13 PDT"]
[Termination "Agibileg won by resignation"]

1. d4 {[%clk 0:03:00.9]} 1... Nf6 {[%clk 0:02:59.8]} 2. c4 {[%clk 0:03:00.5]}
2... g6 {[%clk 0:02:59.8]} 3. Nc3 {[%clk 0:02:59.8]} 3... Bg7 {[%clk 0:03:00.5]}
4. e4 {[%clk 0:02:59.5]} 4... d6 {[%clk 0:03:01.2]} 5. Be2 {[%clk 0:02:59]} 5...
O-O {[%clk 0:03:01.7]} 6. Nf3 {[%clk 0:02:59.3]} 6... e5 {[%clk 0:03:01.6]} 7.
O-O {[%clk 0:02:59.6]} 7... Nbd7 {[%clk 0:03:01.8]} 8. Be3 {[%clk 0:02:56.4]}
8... Qe7 {[%clk 0:03:02.2]} 9. d5 {[%clk 0:02:50.5]} 9... c5 {[%clk 0:03:02.5]}
10. Ne1 {[%clk 0:02:48.9]} 10... Kh8 {[%clk 0:03:02.9]} 11. g4 {[%clk
0:02:44.8]} 11... Ng8 {[%clk 0:03:03.5]} 12. Kh1 {[%clk 0:02:44.5]} 12... f5
{[%clk 0:03:03.2]} 13. gxf5 {[%clk 0:02:44.6]} 13... gxf5 {[%clk 0:03:03.8]} 14.
exf5 {[%clk 0:02:45.5]} 14... Ndf6 {[%clk 0:03:03.6]} 15. Rg1 {[%clk 0:02:42.7]}
15... Bxf5 {[%clk 0:03:03.4]} 16. Bg5 {[%clk 0:02:42.3]} 16... e4 {[%clk
0:02:51.9]} 17. Nc2 {[%clk 0:02:31.9]} 17... Qe5 {[%clk 0:02:49]} 18. Ne3 {[%clk
0:02:28.5]} 18... Bg6 {[%clk 0:02:26.3]} 19. Bh4 {[%clk 0:02:06.1]} 19... Bh6
{[%clk 0:01:59.7]} 20. Qf1 {[%clk 0:01:22.4]} 20... Bxe3 {[%clk 0:01:49.2]} 21.
fxe3 {[%clk 0:01:22.5]} 21... Nxd5 {[%clk 0:01:46.7]} 22. Nxd5 {[%clk
0:01:14.9]} 22... Rxf1 {[%clk 0:01:46.5]} 23. Raxf1 {[%clk 0:01:15.6]} 23...
Qxb2 {[%clk 0:01:44.9]} 24. Rf2 {[%clk 0:01:06.4]} 24... Qxa2 {[%clk 0:01:28.6]}
25. Bg4 {[%clk 0:00:38.1]} 25... Qxc4 {[%clk 0:01:26.5]} 26. Be6 {[%clk
0:00:37.9]} 26... Bh5 {[%clk 0:00:43.6]} 27. Bxg8 {[%clk 0:00:29.4]} 27... Bg6
{[%clk 0:00:27.9]} 28. Be6 {[%clk 0:00:22.4]} 28... Kg7 {[%clk 0:00:17.1]} 29.
Bf6+ {[%clk 0:00:21.3]} 29... Kh6 {[%clk 0:00:09.6]} 30. Rf4 {[%clk 0:00:21.4]}
30... Qe2 {[%clk 0:00:02.9]} 31. Rh4+ {[%clk 0:00:20.3]} 31... Qh5 {[%clk
0:00:01.8]} 32. Rxh5+ {[%clk 0:00:18]} 32... Kxh5 {[%clk 0:00:02.7]} 33. Nf4+
{[%clk 0:00:17.6]} 33... Kh6 {[%clk 0:00:03.3]} 34. Bf5 {[%clk 0:00:12.7]} 34...
Rf8 {[%clk 0:00:01.2]} 35. Bg5+ {[%clk 0:00:12.9]} 35... Kg7 {[%clk 0:00:01.4]}
36. Ne6+ {[%clk 0:00:13.8]} 36... Kf7 {[%clk 0:00:01.5]} 37. Nxf8 {[%clk
0:00:12.6]} 37... Bxf5 {[%clk 0:00:02.4]} 38. Bh6 {[%clk 0:00:12.3]} 38... Kf6
{[%clk 0:00:01.7]} 39. Bg7+ {[%clk 0:00:11.4]} 39... Kf7 {[%clk 0:00:01.6]} 40.
Bh6 {[%clk 0:00:10.5]} 40... Ke7 {[%clk 0:00:01.7]} 41. Rg7+ {[%clk 0:00:09.5]}
41... Kd8 {[%clk 0:00:01.4]} 42. Rxb7 {[%clk 0:00:09.4]} 42... Bg4 {[%clk
0:00:01.6]} 43. Rxa7 {[%clk 0:00:08.8]} 43... c4 {[%clk 0:00:02.1]} 44. Bg7
{[%clk 0:00:08.4]} 44... Ke8 {[%clk 0:00:01.9]} 45. Nxh7 {[%clk 0:00:07.7]}
45... Bf3+ {[%clk 0:00:01.7]} 46. Kg1 {[%clk 0:00:07.7]} 46... d5 {[%clk
0:00:02.3]} 47. Bd4 {[%clk 0:00:07.5]} 47... Kd8 {[%clk 0:00:02.5]} 48. Nf6
{[%clk 0:00:07.4]} 48... Kc8 {[%clk 0:00:02.9]} 49. h4 {[%clk 0:00:07.5]} 49...
Kb8 {[%clk 0:00:03]} 50. Rg7 {[%clk 0:00:05.8]} 50... c3 {[%clk 0:00:02.8]} 51.
Bxc3 {[%clk 0:00:05.7]} 51... Kc8 {[%clk 0:00:03.5]} 52. h5 {[%clk 0:00:05.8]}
52... Bxh5 {[%clk 0:00:04.1]} 53. Nxh5 {[%clk 0:00:06.7]} 53... Kd8 {[%clk
0:00:04.6]} 54. Nf6 {[%clk 0:00:06]} 54... d4 {[%clk 0:00:05.1]} 55. Bxd4 {[%clk
0:00:06.2]} 55... Kc8 {[%clk 0:00:06]} 56. Kf2 {[%clk 0:00:06]} 56... Kb8 {[%clk
0:00:06.7]} 57. Kg3 {[%clk 0:00:06.9]} 57... Ka8 {[%clk 0:00:07.3]} 58. Kf4
{[%clk 0:00:07.8]} 58... Kb8 {[%clk 0:00:07.9]} 59. Ke5 {[%clk 0:00:08.7]} 59...
Ka8 {[%clk 0:00:08.8]} 60. Kd6 {[%clk 0:00:09.3]} 1-0

[Event "Early-Titled-Tuesday-Blitz-August-29-2023"]
[Site "Chess.com"]
[Date "2023.08.29"]
[Round "9"]
[White "Chessmissile07"]
[Black "wadsy27"]
[Result "1-0"]
[WhiteElo "2827"]
[BlackElo "2608"]
[TimeControl "180+1"]
[EndTime "9:44:16 PDT"]
[Termination "Chessmissile07 won by resignation"]

1. d4 {[%clk 0:03:00.9]} 1... Nf6 {[%clk 0:02:59.1]} 2. Nf3 {[%clk 0:03:00.8]}
2... c5 {[%clk 0:02:58.4]} 3. d5 {[%clk 0:02:59.3]} 3... b5 {[%clk 0:02:57]} 4.
e4 {[%clk 0:02:54.7]} 4... Nxe4 {[%clk 0:02:48.8]} 5. Bd3 {[%clk 0:02:54.8]}
5... Nf6 {[%clk 0:02:42.5]} 6. Bxb5 {[%clk 0:02:54.4]} 6... Qa5+ {[%clk
0:02:39.9]} 7. Nc3 {[%clk 0:02:54.3]} 7... Ba6 {[%clk 0:02:40.4]} 8. Bxa6 {[%clk
0:02:47.7]} 8... Qxa6 {[%clk 0:02:35.5]} 9. Qe2 {[%clk 0:02:47.5]} 9... Qxe2+
{[%clk 0:02:31.3]} 10. Kxe2 {[%clk 0:02:48.4]} 10... d6 {[%clk 0:02:27.2]} 11.
a4 {[%clk 0:02:29]} 11... g6 {[%clk 0:02:21.8]} 12. Rd1 {[%clk 0:02:16]} 12...
Bg7 {[%clk 0:02:18.2]} 13. Ra3 {[%clk 0:02:14.9]} 13... Na6 {[%clk 0:02:15.7]}
14. Nb5 {[%clk 0:01:57.1]} 14... O-O {[%clk 0:02:09.9]} 15. c3 {[%clk
0:01:57.2]} 15... Rfc8 {[%clk 0:01:59.5]} 16. Bg5 {[%clk 0:01:50.7]} 16... Rab8
{[%clk 0:01:47.9]} 17. Bxf6 {[%clk 0:01:47.8]} 17... Bxf6 {[%clk 0:01:47.3]} 18.
Kd3 {[%clk 0:01:41.8]} 18... Rb7 {[%clk 0:01:38]} 19. Nd2 {[%clk 0:01:30.3]}
19... c4+ {[%clk 0:01:17.5]} 20. Nxc4 {[%clk 0:01:09.4]} 20... Nc5+ {[%clk
0:01:17.7]} 21. Kc2 {[%clk 0:01:09.7]} 21... Nxa4 {[%clk 0:01:00.5]} 22. Rxa4
{[%clk 0:01:10.6]} 22... Rxb5 {[%clk 0:00:59.8]} 23. Ne3 {[%clk 0:01:05.5]}
23... Rcb8 {[%clk 0:00:50.1]} 24. b4 {[%clk 0:00:53.9]} 24... Rc8 {[%clk
0:00:40.3]} 25. c4 {[%clk 0:00:39.9]} 25... Rb7 {[%clk 0:00:40.3]} 26. Kb3
{[%clk 0:00:37.1]} 26... Rbc7 {[%clk 0:00:39.2]} 27. b5 {[%clk 0:00:34]} 27...
Be5 {[%clk 0:00:35]} 28. g3 {[%clk 0:00:33.5]} 28... f5 {[%clk 0:00:34.8]} 29.
Nc2 {[%clk 0:00:31.8]} 29... a5 {[%clk 0:00:14.4]} 30. bxa6 {[%clk 0:00:29.2]}
30... Rb8+ {[%clk 0:00:14]} 31. Nb4 {[%clk 0:00:27.4]} 31... Ra7 {[%clk
0:00:11.9]} 32. Rd2 {[%clk 0:00:15.7]} 32... Rb6 {[%clk 0:00:10.8]} 33. Rda2
{[%clk 0:00:13.6]} 33... Bd4 {[%clk 0:00:10.9]} 34. Kc2 {[%clk 0:00:12.5]} 34...
Bxf2 {[%clk 0:00:10.1]} 35. Nc6 {[%clk 0:00:12.7]} 35... Ra8 {[%clk 0:00:10.3]}
36. a7 {[%clk 0:00:12.4]} 36... Rb7 {[%clk 0:00:10.3]} 37. Rb2 {[%clk 0:00:10]}
37... Rxb2+ {[%clk 0:00:09.7]} 38. Kxb2 {[%clk 0:00:10.9]} 38... Kf7 {[%clk
0:00:09.4]} 39. Kc2 {[%clk 0:00:07.3]} 39... g5 {[%clk 0:00:08.9]} 40. Rb4
{[%clk 0:00:07.4]} 40... Bxa7 {[%clk 0:00:07.5]} 41. Ra4 {[%clk 0:00:07.8]}
41... f4 {[%clk 0:00:06.2]} 42. Rxa7 {[%clk 0:00:05.6]} 42... Rxa7 {[%clk
0:00:06]} 43. Nxa7 {[%clk 0:00:06.5]} 43... fxg3 {[%clk 0:00:06.2]} 44. hxg3
{[%clk 0:00:07.4]} 44... h5 {[%clk 0:00:06.6]} 45. Kd3 {[%clk 0:00:07.8]} 45...
h4 {[%clk 0:00:06.7]} 46. gxh4 {[%clk 0:00:07.7]} 46... gxh4 {[%clk 0:00:07.3]}
47. Ke4 {[%clk 0:00:08.1]} 47... e6 {[%clk 0:00:07.8]} 48. Nb5 {[%clk
0:00:07.5]} 48... exd5+ {[%clk 0:00:07.2]} 49. Kxd5 {[%clk 0:00:06.8]} 49... h3
{[%clk 0:00:06.4]} 50. Nxd6+ {[%clk 0:00:07.2]} 50... Ke7 {[%clk 0:00:06.3]} 51.
Ne4 {[%clk 0:00:06.1]} 51... h2 {[%clk 0:00:06.9]} 52. Nf2 {[%clk 0:00:05.4]}
52... Kd7 {[%clk 0:00:07.8]} 53. c5 {[%clk 0:00:02.7]} 53... Kc7 {[%clk
0:00:08.7]} 54. c6 {[%clk 0:00:02.8]} 54... Kc8 {[%clk 0:00:08.4]} 55. Kd6
{[%clk 0:00:02.7]} 55... Kd8 {[%clk 0:00:08.5]} 56. Nh1 {[%clk 0:00:01.9]} 56...
Kc8 {[%clk 0:00:08.6]} 57. Ng3 {[%clk 0:00:02.3]} 57... Kd8 {[%clk 0:00:07.2]}
58. c7+ {[%clk 0:00:02.1]} 58... Kc8 {[%clk 0:00:07.4]} 59. Nh1 {[%clk
0:00:01.7]} 1-0

[Event "Early-Titled-Tuesday-Blitz-August-29-2023"]
[Site "Chess.com"]
[Date "2023.08.29"]
[Round "9"]
[White "Beca95"]
[Black "Bauman_Guy"]
[Result "0-1"]
[WhiteElo "2945"]
[BlackElo "2820"]
[TimeControl "180+1"]
[EndTime "9:44:17 PDT"]
[Termination "Bauman_Guy won by checkmate"]

1. a4 {[%clk 0:03:00.9]} 1... Nf6 {[%clk 0:02:57.1]} 2. d3 {[%clk 0:02:59.6]}
2... d5 {[%clk 0:02:57.4]} 3. Nf3 {[%clk 0:02:58]} 3... c5 {[%clk 0:02:57.6]} 4.
g3 {[%clk 0:02:58.3]} 4... Nc6 {[%clk 0:02:57.9]} 5. Bg2 {[%clk 0:02:58.8]} 5...
Bg4 {[%clk 0:02:58.4]} 6. h3 {[%clk 0:02:57.9]} 6... Bh5 {[%clk 0:02:58.3]} 7.
g4 {[%clk 0:02:58.5]} 7... Bg6 {[%clk 0:02:58.3]} 8. Nh4 {[%clk 0:02:59.1]} 8...
e6 {[%clk 0:02:57.8]} 9. Nd2 {[%clk 0:02:58.2]} 9... Bd6 {[%clk 0:02:55.8]} 10.
e3 {[%clk 0:02:57.6]} 10... Qc7 {[%clk 0:02:54.3]} 11. Qe2 {[%clk 0:02:57.3]}
11... a6 {[%clk 0:02:53.3]} 12. O-O {[%clk 0:02:51.6]} 12... O-O {[%clk
0:02:53]} 13. f4 {[%clk 0:02:48.7]} 13... Nb4 {[%clk 0:02:41.6]} 14. Ndf3 {[%clk
0:02:47.3]} 14... c4 {[%clk 0:02:37]} 15. Nxg6 {[%clk 0:02:46.5]} 15... hxg6
{[%clk 0:02:34.4]} 16. d4 {[%clk 0:02:15.3]} 16... b5 {[%clk 0:02:29.9]} 17. Ne1
{[%clk 0:02:03.9]} 17... Ne4 {[%clk 0:02:25.6]} 18. c3 {[%clk 0:02:03.6]} 18...
Nc6 {[%clk 0:02:07.5]} 19. Qc2 {[%clk 0:01:41]} 19... f5 {[%clk 0:02:05.5]} 20.
Nf3 {[%clk 0:01:41.1]} 20... b4 {[%clk 0:02:01.7]} 21. Bd2 {[%clk 0:01:40.2]}
21... bxc3 {[%clk 0:02:00.7]} 22. bxc3 {[%clk 0:01:36.7]} 22... Rab8 {[%clk
0:02:00.9]} 23. Ng5 {[%clk 0:01:35.4]} 23... Qe7 {[%clk 0:01:49.7]} 24. h4
{[%clk 0:01:34.3]} 24... Rb3 {[%clk 0:01:45.1]} 25. Bxe4 {[%clk 0:01:32.8]}
25... fxe4 {[%clk 0:01:43.6]} 26. h5 {[%clk 0:01:31.5]} 26... gxh5 {[%clk
0:01:34.1]} 27. gxh5 {[%clk 0:01:32.4]} 27... Rf6 {[%clk 0:01:30.3]} 28. Qd1
{[%clk 0:01:31.5]} 28... Qe8 {[%clk 0:01:26.8]} 29. Rf2 {[%clk 0:01:31.2]} 29...
Ne7 {[%clk 0:01:26.5]} 30. Qg4 {[%clk 0:01:27.1]} 30... Nf5 {[%clk 0:01:26]} 31.
Rg2 {[%clk 0:01:27.2]} 31... Rh6 {[%clk 0:01:24.1]} 32. Rh2 {[%clk 0:01:18.5]}
32... Rb2 {[%clk 0:01:09.5]} 33. Re1 {[%clk 0:01:13.4]} 33... Bc7 {[%clk
0:01:03.7]} 34. Ree2 {[%clk 0:00:51.2]} 34... Rb1+ {[%clk 0:00:46.9]} 35. Kg2
{[%clk 0:00:46.9]} 35... Ba5 {[%clk 0:00:46.6]} 36. Kf2 {[%clk 0:00:42.8]} 36...
Rb3 {[%clk 0:00:45.9]} 37. Rh3 {[%clk 0:00:26]} 37... Bxc3 {[%clk 0:00:43.6]}
38. Bxc3 {[%clk 0:00:26.6]} 38... Rxc3 {[%clk 0:00:44.5]} 39. Rb2 {[%clk
0:00:26.6]} 39... Rb3 {[%clk 0:00:44.3]} 40. Qe2 {[%clk 0:00:26.8]} 40... Qxa4
{[%clk 0:00:39]} 41. Ra2 {[%clk 0:00:25.9]} 41... Qb5 {[%clk 0:00:37.2]} 42. Rc2
{[%clk 0:00:24.6]} 42... a5 {[%clk 0:00:35.1]} 43. Rh1 {[%clk 0:00:19.4]} 43...
a4 {[%clk 0:00:33.3]} 44. Qg4 {[%clk 0:00:17.1]} 44... Rb2 {[%clk 0:00:29.7]}
45. Rc1 {[%clk 0:00:15.8]} 45... Qb3 {[%clk 0:00:25.9]} 46. Qe2 {[%clk
0:00:13.2]} 46... Rxc2 {[%clk 0:00:23.6]} 47. Rxc2 {[%clk 0:00:14.1]} 47... Rxh5
{[%clk 0:00:22.3]} 48. Qxh5 {[%clk 0:00:11.1]} 48... Qxc2+ {[%clk 0:00:22.6]}
49. Kg1 {[%clk 0:00:11.3]} 49... Qc1+ {[%clk 0:00:20.8]} 50. Kh2 {[%clk
0:00:11]} 50... Qd2+ {[%clk 0:00:21.2]} 51. Kg1 {[%clk 0:00:10.2]} 51... Qxe3+
{[%clk 0:00:21.4]} 52. Kg2 {[%clk 0:00:10.9]} 52... Qg3+ {[%clk 0:00:16.3]} 53.
Kf1 {[%clk 0:00:06.8]} 53... Qxf4+ {[%clk 0:00:15.2]} 54. Ke1 {[%clk 0:00:06.4]}
54... Qc1+ {[%clk 0:00:14.9]} 55. Kf2 {[%clk 0:00:05.5]} 55... Qd2+ {[%clk
0:00:15.3]} 56. Kg1 {[%clk 0:00:05.6]} 56... Qe1+ {[%clk 0:00:14.9]} 57. Kg2
{[%clk 0:00:06.2]} 57... Ne3+ {[%clk 0:00:11.1]} 58. Kh2 {[%clk 0:00:06.5]}
58... Qf2+ {[%clk 0:00:10.7]} 59. Kh3 {[%clk 0:00:07.1]} 59... Qg2+ {[%clk
0:00:10.1]} 60. Kh4 {[%clk 0:00:08]} 60... Nf5# {[%clk 0:00:10.5]} 0-1

[Event "Early-Titled-Tuesday-Blitz-August-29-2023"]
[Site "Chess.com"]
[Date "2023.08.29"]
[Round "9"]
[White "Firouzja2003"]
[Black "mishanick"]
[Result "1-0"]
[WhiteElo "3107"]
[BlackElo "3128"]
[TimeControl "180+1"]
[EndTime "9:44:23 PDT"]
[Termination "Firouzja2003 won by resignation"]

1. e4 {[%clk 0:03:00.9]} 1... c5 {[%clk 0:02:59.6]} 2. Nf3 {[%clk 0:03:00.9]}
2... d6 {[%clk 0:03:00.3]} 3. d4 {[%clk 0:02:58.8]} 3... cxd4 {[%clk 0:03:01.2]}
4. Nxd4 {[%clk 0:02:59.3]} 4... Nf6 {[%clk 0:03:01.9]} 5. Nc3 {[%clk 0:02:59.4]}
5... a6 {[%clk 0:03:02.6]} 6. Bg5 {[%clk 0:02:59.4]} 6... e6 {[%clk 0:03:02.7]}
7. f4 {[%clk 0:02:59.7]} 7... Qb6 {[%clk 0:03:03.3]} 8. a3 {[%clk 0:02:54.9]}
8... Nc6 {[%clk 0:03:00.8]} 9. Nb3 {[%clk 0:02:54]} 9... Qe3+ {[%clk 0:03:00.7]}
10. Qe2 {[%clk 0:02:45.6]} 10... Ng4 {[%clk 0:03:01.1]} 11. Nd1 {[%clk
0:02:18.4]} 11... Qxe2+ {[%clk 0:03:00.8]} 12. Bxe2 {[%clk 0:02:18.8]} 12... h6
{[%clk 0:03:00.3]} 13. Bh4 {[%clk 0:02:17.1]} 13... Nf6 {[%clk 0:03:00.1]} 14.
Nc3 {[%clk 0:02:14.8]} 14... Be7 {[%clk 0:02:57.6]} 15. Bf2 {[%clk 0:02:04.5]}
15... b5 {[%clk 0:02:57.5]} 16. O-O-O {[%clk 0:02:02.7]} 16... Bb7 {[%clk
0:02:57.1]} 17. Bf3 {[%clk 0:02:02.6]} 17... Rc8 {[%clk 0:02:55.7]} 18. Kb1
{[%clk 0:01:48.1]} 18... g5 {[%clk 0:02:34.1]} 19. g3 {[%clk 0:01:44.8]} 19...
Rg8 {[%clk 0:02:33.8]} 20. Rhe1 {[%clk 0:01:43.8]} 20... gxf4 {[%clk 0:02:33.3]}
21. gxf4 {[%clk 0:01:44.1]} 21... b4 {[%clk 0:02:08.7]} 22. axb4 {[%clk
0:01:20.3]} 22... Nxb4 {[%clk 0:02:09.6]} 23. Rd4 {[%clk 0:01:09.8]} 23... d5
{[%clk 0:02:01.4]} 24. e5 {[%clk 0:00:34.2]} 24... Ne4 {[%clk 0:01:37.1]} 25.
Bxe4 {[%clk 0:00:11.2]} 25... dxe4 {[%clk 0:01:38]} 26. Rg1 {[%clk 0:00:08.2]}
26... Rxg1+ {[%clk 0:01:33.5]} 27. Bxg1 {[%clk 0:00:09.1]} 27... h5 {[%clk
0:00:37.3]} 28. Bf2 {[%clk 0:00:08.1]} 28... h4 {[%clk 0:00:37.4]} 29. Na5
{[%clk 0:00:03.2]} 29... Ba8 {[%clk 0:00:36.2]} 30. Nc4 {[%clk 0:00:02.3]} 30...
Nd5 {[%clk 0:00:19.3]} 31. Nxe4 {[%clk 0:00:01.8]} 31... Rb8 {[%clk 0:00:11.9]}
32. Ned6+ {[%clk 0:00:02.3]} 32... Kf8 {[%clk 0:00:12.5]} 33. f5 {[%clk
0:00:02.6]} 33... exf5 {[%clk 0:00:12.5]} 34. Nxf5 {[%clk 0:00:02.6]} 34... Bc5
{[%clk 0:00:13]} 35. Rd2 {[%clk 0:00:02.9]} 35... Nc3+ {[%clk 0:00:05.3]} 36.
Ka1 {[%clk 0:00:03.2]} 36... Bxf2 {[%clk 0:00:05.1]} 37. Rxf2 {[%clk 0:00:04.1]}
37... Rb4 {[%clk 0:00:05]} 38. b3 {[%clk 0:00:04.1]} 38... Ne4 {[%clk
0:00:03.6]} 39. Rf4 {[%clk 0:00:04.2]} 39... Bd5 {[%clk 0:00:02.2]} 40. Rxh4
{[%clk 0:00:04.4]} 40... f6 {[%clk 0:00:02.9]} 41. exf6 {[%clk 0:00:04.3]} 41...
Nxf6 {[%clk 0:00:03.8]} 42. Nfd6 {[%clk 0:00:04]} 42... Kg7 {[%clk 0:00:01.7]}
43. Nf5+ {[%clk 0:00:04.3]} 43... Kg6 {[%clk 0:00:01.9]} 44. Ne7+ {[%clk
0:00:04.8]} 44... Kg5 {[%clk 0:00:02.2]} 45. Rd4 {[%clk 0:00:04.5]} 45... Bxc4
{[%clk 0:00:02.8]} 46. Nc6 {[%clk 0:00:04.6]} 46... Rb6 {[%clk 0:00:02.4]} 47.
h4+ {[%clk 0:00:04.9]} 47... Kh5 {[%clk 0:00:02.5]} 48. Rxc4 {[%clk 0:00:05.8]}
48... Ng4 {[%clk 0:00:02.4]} 49. Kb2 {[%clk 0:00:05.8]} 49... Ne3 {[%clk
0:00:02.9]} 50. Rc5+ {[%clk 0:00:03.7]} 50... Kxh4 {[%clk 0:00:03.2]} 51. Ne5
{[%clk 0:00:03.6]} 51... Kg3 {[%clk 0:00:03.3]} 52. Rc3 {[%clk 0:00:03.1]} 52...
Kf4 {[%clk 0:00:03.6]} 53. Rxe3 {[%clk 0:00:03.5]} 53... Re6 {[%clk 0:00:02.8]}
54. Nc4 {[%clk 0:00:03.6]} 54... Rxe3 {[%clk 0:00:03.2]} 55. Nxe3 {[%clk
0:00:04.5]} 55... Kxe3 {[%clk 0:00:04.1]} 56. c4 {[%clk 0:00:04.3]} 56... Kd4
{[%clk 0:00:04]} 57. Ka3 {[%clk 0:00:05.1]} 57... Kc5 {[%clk 0:00:02.2]} 58. Ka4
{[%clk 0:00:05.7]} 58... Kc6 {[%clk 0:00:01.2]} 59. Ka5 {[%clk 0:00:05.6]} 59...
Kb7 {[%clk 0:00:01.6]} 60. c5 {[%clk 0:00:05.2]} 60... Kc6 {[%clk 0:00:02]} 61.
Kxa6 {[%clk 0:00:03.7]} 61... Kxc5 {[%clk 0:00:02.6]} 62. Ka5 {[%clk 0:00:04.5]}
62... Kc6 {[%clk 0:00:03.5]} 63. b4 {[%clk 0:00:05.1]} 1-0